fUST/lending_fUST_20250630
["ID","MTS","AMOUNT","RATE_DAILY","PERIOD"]
[368617885,1751239852469,-366.235562,0.00020082,2]
[368617886,1751239852478,-366.235562,0.00020082,2]
[368617887,1751239852487,-363.8375225,0.00020082,2]
[368617888,1751239852497,-4515.30140992,0.00020107,2]
[368617889,1751239852506,-2139.49779254,0.00020113,2]
[368617890,1751239852515,-321.870879,0.00020187,2]
[368617891,1751239852524,-467.45,0.00020208,2]
[368617892,1751239852533,-553.48,0.00020208,2]
[368617893,1751239852542,-2438.09,0.00020208,2]
[368617894,1751239852552,-222.77221466,0.00020208,2]
[368617895,1751239852561,-460.0,0.00020208,2]
[368617896,1751239852570,-1444.66,0.00020209,2]
[368617897,1751239852580,-4468.92,0.00020209,2]
[368617898,1751239852589,-3408.3,0.00020209,2]
[368617899,1751239852598,-454.57540076,0.00020209,2]
[368617900,1751239852609,-724.21,0.00020209,2]
[368617901,1751239852618,-545.18,0.00020209,2]
[368617902,1751239852627,-460.0,0.00020209,2]
[368617903,1751239852636,-3718.43,0.00020209,2]
[368617904,1751239852645,-460.0,0.00020209,2]
[368617905,1751239852655,-4240.6,0.00020209,2]
[368617906,1751239852664,-3968.47,0.00020209,2]
[368617907,1751239852673,-541.01,0.00020209,2]
[368617908,1751239852683,-2118.16,0.00020209,2]
[368617909,1751239852693,-629.29,0.00020209,2]
[368617910,1751239852701,-569.57,0.00020209,2]
[368617911,1751239852710,-460.0,0.00020211,2]
[368617912,1751239852720,-460.0,0.00020211,2]
[368617913,1751239852728,-460.0,0.00020211,2]
[368617914,1751239852738,-276.97,0.00020213,2]
[368617915,1751239852747,-460.0,0.00020213,2]
[368617916,1751239852756,-460.0,0.00020213,2]
[368617917,1751239852766,-1774.75,0.00020213,2]
[368617918,1751239852775,-460.0,0.00020213,2]
[368617919,1751239852786,-910.37,0.00020213,2]
[368617920,1751239852795,-736.48,0.00020213,2]
[368617921,1751239852804,-460.0,0.00020213,2]
[368617922,1751239852813,-909.26,0.00020213,2]
[368617923,1751239852822,-1111.888315,0.00020213,2]
[368617924,1751239852832,-1111.888315,0.00020213,2]
[368617925,1751239852842,-623.38,0.00020213,2]
[368617926,1751239852851,-1179.03,0.00020213,2]
[368617927,1751239852859,-460.0,0.00020213,2]
[368617928,1751239852869,-460.0,0.00020213,2]
[368617929,1751239852878,-460.0,0.00020213,2]
[368617930,1751239852887,-460.0,0.00020213,2]
[368617931,1751239852896,-460.0,0.00020214,2]
[368617932,1751239852906,-1241.6,0.00020214,2]
[368617933,1751239852915,-460.0,0.00020214,2]
[368617934,1751239852924,-460.0,0.00020214,2]
[368617935,1751239852933,-469.32,0.00020214,2]
[368617936,1751239852942,-153.71,0.00020214,2]
[368617937,1751239852951,-696.63,0.00020214,2]
[368617938,1751239852960,-460.0,0.00020214,2]
[368617939,1751239852970,-460.0,0.00020214,2]
[368617940,1751239852979,-460.0,0.00020214,2]
[368617941,1751239852990,-682.57,0.00020214,2]
[368617942,1751239852999,-460.0,0.00020214,2]
[368617943,1751239853007,-832.29,0.00020214,2]
[368617944,1751239853016,-4830.61,0.00020214,2]
[368617945,1751239853025,-531.77,0.00020217,2]
[368617946,1751239853034,-460.0,0.00020217,2]
[368617947,1751239853043,-353.22278403,0.00020217,2]
[368617948,1751239853052,-485.35,0.00020217,2]
[368617949,1751239853061,-460.0,0.00020217,2]
[368617950,1751239853071,-460.0,0.00020217,2]
[368617951,1751239853080,-962.69,0.00020217,2]
[368617952,1751239853089,-851.48,0.00020217,2]
[368617953,1751239853098,-797.34,0.00020217,2]
[368617954,1751239853107,-760.98,0.00020217,2]
[368617955,1751239853117,-460.0,0.00020217,2]
[368617956,1751239853126,-813.49,0.00020217,2]
[368617957,1751239853135,-460.0,0.00020217,2]
[368617958,1751239853145,-529.318051,0.00020217,2]
[368617959,1751239853154,-529.318051,0.00020217,2]
[368617960,1751239853164,-460.0,0.00020217,2]
[368617961,1751239853173,-460.0,0.00020217,2]
[368617962,1751239853183,-4985.95,0.00020231,2]
[368617963,1751239853192,-1630.49,0.00020231,2]
[368617964,1751239853202,-188.468815,0.00020233,2]
[368617965,1751239853211,-242.609982,0.00020233,2]
[368617966,1751239853220,-242.609982,0.00020233,2]
[368617967,1751239853230,-246.504199,0.00020233,2]
[368617968,1751239853239,-246.504199,0.00020233,2]
[368617969,1751239853248,-590.58,0.00020233,2]
[368617970,1751239853258,-460.0,0.00020233,2]
[368617971,1751239853267,-668.76,0.00020233,2]
[368617972,1751239853277,-1629.27,0.00020234,2]
[368617973,1751239853287,-1331.6,0.00020234,2]
[368617974,1751239853296,-1779.2,0.00020234,2]
[368617975,1751239853305,-460.0,0.00020234,2]
[368617976,1751239853315,-460.0,0.00020234,2]
[368617977,1751239853325,-482.72208706,0.00020234,2]
[368617978,1751239853335,-1977.74,0.00020234,2]
[368617979,1751239853344,-539.92,0.00020234,2]
[368617980,1751239853354,-1240.02,0.00020234,2]
[368617981,1751239853363,-1773.31,0.00020234,2]
[368617982,1751239853372,-151.0,0.00020236,2]
[368617983,1751239853382,-223.012214,0.00020236,2]
[368617984,1751239853391,-151.0,0.00020245,2]
[368617985,1751239853401,-151.0,0.00020245,2]
[368617986,1751239853410,-240.649061,0.00020245,2]
[368617987,1751239853420,-1186.974112,0.00020245,2]
[368617988,1751239853430,-1186.974112,0.00020245,2]
[368617989,1751239853439,-967.866,0.0002026,2]
[368617990,1751239853448,-177.91573783,0.0002026,2]
[368617991,1751239853458,-4515.30140992,0.00020279,3]
[368617992,1751239853467,-151.0,0.00020296,2]
[368617993,1751239853477,-151.0,0.00020296,2]
[368617994,1751239853486,-1099.0,0.00020302,2]
[368617995,1751239853495,-306.0,0.00020356,2]
[368617996,1751239853504,-575.118961,0.00020356,2]
[368617997,1751239853514,-156.1272779,0.00020356,2]
[368617998,1751239853522,-575.3123006,0.00020356,2]
[368617999,1751239853532,-307.872823,0.00020367,4]
[368618000,1751239853541,-1603.575816,0.00020422,2]
[368618001,1751239853550,-151.0,0.00020438,2]
[368618002,1751239853559,-151.0,0.00020438,2]
[368618003,1751239853568,-151.0,0.00020438,2]
[368618004,1751239853578,-196.357077,0.00020438,2]
[368618005,1751239853587,-196.357077,0.00020438,2]
[368618006,1751239853596,-460.0,0.00020446,2]
[368618007,1751239853605,-4515.30140992,0.00020452,3]
[368618008,1751239853619,-12567.05932091,0.0002046,3]
[368618009,1751239853628,-213.82031328,0.0002046,3]
[368618010,1751239853637,-347.744841,0.00020461,2]
[368618011,1751239853647,-347.744841,0.00020461,2]
[368618012,1751239853657,-212.332006,0.00020461,2]
[368618013,1751239853666,-212.332006,0.00020461,2]
[368618014,1751239853675,-421.827696,0.00020461,2]
[368618015,1751239853797,-421.827696,0.00020461,2]
[368618016,1751239853807,-151.0,0.00020461,2]
[368618017,1751239853818,-1149.129529,0.00020461,2]
[368618018,1751239853827,-1149.129529,0.00020461,2]
[368618019,1751239853837,-467.45,0.00020482,2]
[368618020,1751239853846,-553.48,0.00020482,2]
[368618021,1751239853856,-2438.09,0.00020482,2]
[368618022,1751239853865,-460.0,0.00020482,2]
[368618023,1751239853875,-1444.66,0.00020483,2]
[368618024,1751239853884,-4468.92,0.00020483,2]
[368618025,1751239853893,-3408.3,0.00020483,2]
[368618026,1751239853902,-724.21,0.00020483,2]
[368618027,1751239853911,-545.18,0.00020483,2]
[368618028,1751239853920,-514.8074049,0.00020483,2]
[368618029,1751239853929,-3718.43,0.00020483,2]
[368618030,1751239853938,-460.0,0.00020483,2]
[368618031,1751239853950,-4240.6,0.00020483,2]
[368618032,1751239853959,-3968.47,0.00020483,2]
[368618033,1751239853969,-541.01,0.00020483,2]
[368618034,1751239853978,-2118.16,0.00020483,2]
[368618035,1751239853987,-629.29,0.00020483,2]
[368618036,1751239853996,-569.57,0.00020483,2]
[368618037,1751239854005,-407.72788844,0.00020485,2]
[368618038,1751239854014,-460.0,0.00020485,2]
[368618039,1751239854023,-460.0,0.00020485,2]
[368618040,1751239854033,-460.0,0.00020487,2]
[368618041,1751239854043,-460.0,0.00020487,2]
[368618042,1751239854053,-1774.75,0.00020487,2]
[368618043,1751239854062,-460.0,0.00020487,2]
[368618044,1751239854072,-910.37,0.00020487,2]
[368618045,1751239854081,-736.48,0.00020487,2]
[368618046,1751239854091,-460.0,0.00020487,2]
[368618047,1751239854102,-909.26,0.00020487,2]
[368618048,1751239854112,-623.38,0.00020487,2]
[368618049,1751239854121,-1179.03,0.00020487,2]
[368618050,1751239854130,-460.0,0.00020487,2]
[368618051,1751239854141,-460.0,0.00020487,2]
[368618052,1751239854151,-460.0,0.00020487,2]
[368618053,1751239854161,-460.0,0.00020487,2]
[368618054,1751239854171,-875.536668,0.00020488,2]
[368618055,1751239854181,-875.536668,0.00020488,2]
[368618056,1751239854190,-244.254113,0.00020488,2]
[368618057,1751239854199,-244.254113,0.00020488,2]
[368618058,1751239854209,-460.0,0.00020488,2]
[368618059,1751239854218,-1241.6,0.00020488,2]
[368618060,1751239854228,-460.0,0.00020488,2]
[368618061,1751239854238,-460.0,0.00020488,2]
[368618062,1751239854247,-469.32,0.00020488,2]
[368618063,1751239854256,-696.63,0.00020488,2]
[368618064,1751239854266,-460.0,0.00020488,2]
[368618065,1751239854276,-460.0,0.00020488,2]
[368618066,1751239854285,-460.0,0.00020488,2]
[368618067,1751239854294,-682.57,0.00020488,2]
[368618068,1751239854303,-460.0,0.00020488,2]
[368618069,1751239854314,-832.29,0.00020488,2]
[368618070,1751239854324,-4830.61,0.00020488,2]
[368618071,1751239854334,-529.318051,0.00020489,2]
[368618072,1751239854343,-529.318051,0.00020489,2]
[368618073,1751239854353,-460.0,0.0002049,2]
[368618074,1751239854363,-460.0,0.00020491,2]
[368618075,1751239854372,-485.35,0.00020491,2]
[368618076,1751239854382,-460.0,0.00020491,2]
[368618077,1751239854393,-460.0,0.00020491,2]
[368618078,1751239854404,-962.69,0.00020491,2]
[368618079,1751239854413,-851.48,0.00020491,2]
[368618080,1751239854424,-797.34,0.00020491,2]
[368618081,1751239854433,-760.98,0.00020491,2]
[368618082,1751239854443,-460.0,0.00020491,2]
[368618083,1751239854453,-813.49,0.00020491,2]
[368618084,1751239854462,-460.0,0.00020491,2]
[368618085,1751239854473,-460.0,0.00020491,2]
[368618086,1751239854482,-378.81613658,0.00020491,2]
[368618087,1751239854491,-151.0,0.00020505,2]
[368618088,1751239854501,-4985.95,0.00020505,2]
[368618089,1751239854510,-1630.49,0.00020505,2]
[368618090,1751239854520,-750.546975,0.00020505,2]
[368618091,1751239854529,-750.546975,0.00020505,2]
[368618092,1751239854539,-151.0,0.00020505,2]
[368618093,1751239854548,-590.58,0.00020507,2]
[368618094,1751239854558,-460.0,0.00020507,2]
[368618095,1751239854568,-668.76,0.00020507,2]
[368618096,1751239854577,-151.0,0.00020508,2]
[368618097,1751239854587,-191.410658,0.00020508,2]
[368618098,1751239854597,-151.0,0.00020508,2]
[368618099,1751239854608,-1629.27,0.00020508,2]
[368618100,1751239854620,-1331.6,0.00020508,2]
[368618101,1751239854629,-1779.2,0.00020508,2]
[368618102,1751239854639,-460.0,0.00020508,2]
[368618103,1751239854648,-460.0,0.00020508,2]
[368618104,1751239854658,-1977.74,0.00020508,2]
[368618105,1751239854667,-539.92,0.00020508,2]
[368618106,1751239854676,-1240.02,0.00020508,2]
[368618107,1751239854687,-1773.31,0.00020508,2]
[368618108,1751239854696,-5000.0,0.00020525,2]
[368618109,1751239854705,-500.0,0.00020533,2]
[368618110,1751239854714,-2000.0,0.00020533,2]
[368618111,1751239854723,-176.815034,0.0002055,4]
[368618112,1751239854732,-1000.0,0.00020575,2]
[368618113,1751239854741,-2000.0,0.00020579,2]
[368618114,1751239854751,-460.0,0.0002058,2]
[368618115,1751239854759,-847.31290578,0.0002059,3]
[368618116,1751239854768,-160.0,0.0002059,3]
[368618117,1751239854777,-5174.18,0.000206,2]
[368618118,1751239854786,-4515.30140992,0.00020624,3]
[368618119,1751239854795,-6866.27502291,0.0002068,2]
[368618120,1751239854804,-1111.888315,0.00020701,2]
[368618121,1751239854814,-1111.888315,0.00020701,2]
[368618122,1751239854823,-966.0,0.00020707,2]
[368618123,1751239854833,-460.0,0.00020736,2]
[368618124,1751239854842,-467.45,0.00020756,2]
[368618125,1751239854852,-553.48,0.00020756,2]
[368618126,1751239854861,-2438.09,0.00020756,2]
[368618127,1751239854871,-460.0,0.00020756,2]
[368618128,1751239854880,-1444.66,0.00020757,2]
[368618129,1751239854889,-4468.92,0.00020757,2]
[368618130,1751239854898,-3408.3,0.00020757,2]
[368618131,1751239854908,-724.21,0.00020757,2]
[368618132,1751239854917,-545.18,0.00020757,2]
[368618133,1751239854926,-3718.43,0.00020757,2]
[368618134,1751239854935,-460.0,0.00020757,2]
[368618135,1751239854945,-4240.6,0.00020757,2]
[368618136,1751239854954,-3968.47,0.00020757,2]
[368618137,1751239854963,-541.01,0.00020757,2]
[368618138,1751239854972,-2118.16,0.00020757,2]
[368618139,1751239854981,-629.29,0.00020757,2]
[368618140,1751239854991,-569.57,0.00020757,2]
[368618141,1751239855001,-460.0,0.00020759,2]
[368618142,1751239855010,-460.0,0.00020759,2]
[368618143,1751239855019,-460.0,0.00020761,2]
[368618144,1751239855029,-460.0,0.00020761,2]
[368618145,1751239855038,-1774.75,0.00020761,2]
[368618146,1751239855048,-460.0,0.00020761,2]
[368618147,1751239855057,-910.37,0.00020761,2]
[368618148,1751239855067,-736.48,0.00020761,2]
[368618149,1751239855076,-460.0,0.00020761,2]
[368618150,1751239855086,-909.26,0.00020761,2]
[368618151,1751239855096,-623.38,0.00020761,2]
[368618152,1751239855105,-1179.03,0.00020761,2]
[368618153,1751239855114,-460.0,0.00020761,2]
[368618154,1751239855123,-460.0,0.00020761,2]
[368618155,1751239855132,-460.0,0.00020761,2]
[368618156,1751239855142,-460.0,0.00020761,2]
[368618157,1751239855151,-460.0,0.00020762,2]
[368618158,1751239855160,-1241.6,0.00020762,2]
[368618159,1751239855170,-460.0,0.00020762,2]
[368618160,1751239855179,-460.0,0.00020762,2]
[368618161,1751239855188,-469.32,0.00020762,2]
[368618162,1751239855198,-696.63,0.00020762,2]
[368618163,1751239855207,-460.0,0.00020762,2]
[368618164,1751239855216,-460.0,0.00020762,2]
[368618165,1751239855226,-460.0,0.00020762,2]
[368618166,1751239855235,-682.57,0.00020762,2]
[368618167,1751239855245,-460.0,0.00020762,2]
[368618168,1751239855254,-832.29,0.00020762,2]
[368618169,1751239855263,-4830.61,0.00020762,2]
[368618170,1751239855272,-460.0,0.00020765,2]
[368618171,1751239855282,-485.35,0.00020765,2]
[368618172,1751239855292,-180.82526387,0.00020765,2]
[368618173,1751239855302,-460.0,0.00020765,2]
[368618174,1751239855311,-962.69,0.00020765,2]
[368618175,1751239855321,-851.48,0.00020765,2]
[368618176,1751239855330,-797.34,0.00020765,2]
[368618177,1751239855339,-760.98,0.00020765,2]
[368618178,1751239855348,-460.0,0.00020765,2]
[368618179,1751239855359,-813.49,0.00020765,2]
[368618180,1751239855369,-460.0,0.00020765,2]
[368618181,1751239855379,-460.0,0.00020765,2]
[368618182,1751239855389,-875.536668,0.00020769,2]
[368618183,1751239855398,-875.536668,0.00020769,2]
[368618184,1751239855408,-244.254113,0.00020769,2]
[368618185,1751239855417,-244.254113,0.00020769,2]
[368618186,1751239855426,-160.0,0.0002077,3]
[368618187,1751239855435,-4985.95,0.00020779,2]
[368618188,1751239855444,-1630.49,0.00020779,2]
[368618189,1751239855454,-66339.14365931,0.0002078,2]
[368618190,1751239855463,-122775.06027057,0.0002078,2]
[368618191,1751239855472,-153027.19502112,0.0002078,2]
[368618192,1751239855481,-151.0,0.0002078,2]
[368618193,1751239855490,-875.536668,0.0002078,2]
[368618194,1751239855499,-875.536668,0.0002078,2]
[368618195,1751239855508,-193.531751,0.0002078,2]
[368618196,1751239855517,-244.254113,0.0002078,2]
[368618197,1751239855526,-244.254113,0.0002078,2]
[368618198,1751239855535,-216.414903,0.0002078,2]
[368618199,1751239855545,-1149.129529,0.0002078,2]
[368618200,1751239855554,-1149.129529,0.0002078,2]
[368618201,1751239855563,-151.0,0.0002078,2]
[368618202,1751239855573,-529.318051,0.0002078,2]
[368618203,1751239855582,-529.318051,0.0002078,2]
[368618204,1751239855591,-151.0,0.0002078,2]
[368618205,1751239855600,-750.546975,0.0002078,2]
[368618206,1751239855610,-750.546975,0.0002078,2]
[368618207,1751239855620,-151.0,0.0002078,2]
[368618208,1751239855629,-1111.888315,0.0002078,2]
[368618209,1751239855639,-1111.888315,0.0002078,2]
[368618210,1751239855648,-1186.974112,0.0002078,2]
[368618211,1751239855658,-1186.974112,0.0002078,2]
[368618212,1751239855667,-590.58,0.00020781,2]
[368618213,1751239855677,-460.0,0.00020781,2]
[368618214,1751239855688,-668.76,0.00020781,2]
[368618215,1751239855697,-1603.575816,0.00020782,2]
[368618216,1751239855706,-1603.575816,0.00020782,2]
[368618217,1751239855715,-347.744841,0.00020782,2]
[368618218,1751239855724,-347.744841,0.00020782,2]
[368618219,1751239855734,-212.332006,0.00020782,2]
[368618220,1751239855743,-212.332006,0.00020782,2]
[368618221,1751239855752,-421.827696,0.00020782,2]
[368618222,1751239855761,-421.827696,0.00020782,2]
[368618223,1751239855770,-1629.27,0.00020782,2]
[368618224,1751239855779,-1331.6,0.00020782,2]
[368618225,1751239855789,-1779.2,0.00020782,2]
[368618226,1751239855798,-460.0,0.00020782,2]
[368618227,1751239855808,-460.0,0.00020782,2]
[368618228,1751239855817,-1977.74,0.00020782,2]
[368618229,1751239855827,-539.92,0.00020782,2]
[368618230,1751239855836,-1240.02,0.00020782,2]
[368618231,1751239855846,-1773.31,0.00020782,2]
[368618232,1751239855855,-153.371078,0.00020783,2]
[368618233,1751239855864,-153.371078,0.00020783,2]
[368618234,1751239855873,-888.33703532,0.00020783,2]
[368618235,1751239855883,-181.503823,0.00020785,2]
[368618236,1751239855892,-181.503823,0.00020785,2]
[368618237,1751239855901,-458.942417,0.00020786,2]
[368618238,1751239855910,-151.0,0.00020787,2]
[368618239,1751239855919,-151.0,0.00020789,2]
[368618240,1751239855928,-151.0,0.00020789,2]
[368618241,1751239855937,-151.0,0.00020789,2]
[368618242,1751239855946,-151.0,0.00020789,2]
[368618243,1751239855955,-151.0,0.00020789,2]
[368618244,1751239855965,-183.558493,0.00020789,2]
[368618245,1751239855974,-151.0,0.00020789,2]
[368618246,1751239855984,-250.82859,0.00020789,2]
[368618247,1751239855992,-153.371078,0.00020789,2]
[368618248,1751239856001,-153.371078,0.00020789,2]
[368618249,1751239856011,-242.609982,0.00020789,2]
[368618250,1751239856020,-242.609982,0.00020789,2]
[368618251,1751239856029,-246.504199,0.00020789,2]
[368618252,1751239856038,-246.504199,0.00020789,2]
[368618253,1751239856047,-4515.30140992,0.00020797,4]
[368618254,1751239856056,-215.0738,0.00020798,2]
[368618255,1751239856066,-460.0,0.00020867,2]
[368618256,1751239856075,-300.0,0.00020871,2]
[368618257,1751239856084,-599.050011,0.00020904,2]
[368618258,1751239856094,-599.050011,0.00020904,2]
[368618259,1751239856103,-4515.30140992,0.00020969,4]
[368618260,1751239856112,-12500.0,0.00020988,2]
[368618261,1751239856122,-12500.0,0.00020997,2]
[368618262,1751239856131,-3000.0,0.00021,2]
[368618263,1751239856141,-2327.47,0.00021,2]
[368618264,1751239856151,-1000.0,0.00021,2]
[368618265,1751239856160,-798.34764,0.00021004,2]
[368618266,1751239856280,-12500.0,0.00021005,2]
[368618267,1751239856290,-3000.0,0.0002101,2]
[368618268,1751239856299,-12500.0,0.00021014,2]
[368618269,1751239856309,-151.0,0.00021016,2]
[368618270,1751239856318,-3000.0,0.0002102,2]
[368618271,1751239856328,-151.0,0.0002102,2]
[368618272,1751239856337,-151.0,0.0002102,2]
[368618273,1751239856347,-212.532158,0.0002102,2]
[368618274,1751239856357,-151.0,0.0002102,2]
[368618275,1751239856366,-384.351917,0.0002102,2]
[368618276,1751239856375,-384.351917,0.0002102,2]
[368618277,1751239856385,-1603.575816,0.0002102,2]
[368618278,1751239856394,-1603.575816,0.0002102,2]
[368618279,1751239856404,-247.364,0.0002102,2]
[368618280,1751239856414,-12500.0,0.00021023,2]
[368618281,1751239856424,-3000.0,0.0002103,2]
[368618282,1751239856433,-467.45,0.0002103,2]
[368618283,1751239856443,-553.48,0.0002103,2]
[368618284,1751239856452,-2438.09,0.0002103,2]
[368618285,1751239856462,-460.0,0.0002103,2]
[368618286,1751239856471,-1444.66,0.00021031,2]
[368618287,1751239856480,-4468.92,0.00021031,2]
[368618288,1751239856489,-3408.3,0.00021031,2]
[368618289,1751239856499,-724.21,0.00021031,2]
[368618290,1751239856508,-545.18,0.00021031,2]
[368618291,1751239856517,-3718.43,0.00021031,2]
[368618292,1751239856526,-460.0,0.00021031,2]
[368618293,1751239856536,-4240.6,0.00021031,2]
[368618294,1751239856545,-3968.47,0.00021031,2]
[368618295,1751239856555,-541.01,0.00021031,2]
[368618296,1751239856566,-2118.16,0.00021031,2]
[368618297,1751239856576,-629.29,0.00021031,2]
[368618298,1751239856586,-569.57,0.00021031,2]
[368618299,1751239856595,-12500.0,0.00021032,2]
[368618300,1751239856604,-2150.0,0.00021033,2]
[368618301,1751239856617,-646.0,0.00021033,2]
[368618302,1751239856627,-406.0,0.00021033,2]
[368618303,1751239856636,-422.825,0.00021033,2]
[368618304,1751239856646,-460.0,0.00021033,2]
[368618305,1751239856657,-460.0,0.00021033,2]
[368618306,1751239856666,-460.0,0.00021035,2]
[368618307,1751239856675,-460.0,0.00021035,2]
[368618308,1751239856685,-1774.75,0.00021035,2]
[368618309,1751239856694,-151.0,0.00021035,2]
[368618310,1751239856703,-460.0,0.00021035,2]
[368618311,1751239856712,-910.37,0.00021035,2]
[368618312,1751239856721,-736.48,0.00021035,2]
[368618313,1751239856731,-151.0,0.00021035,2]
[368618314,1751239856740,-460.0,0.00021035,2]
[368618315,1751239856750,-909.26,0.00021035,2]
[368618316,1751239856759,-1111.888315,0.00021035,2]
[368618317,1751239856770,-1111.888315,0.00021035,2]
[368618318,1751239856779,-623.38,0.00021035,2]
[368618319,1751239856790,-1179.03,0.00021035,2]
[368618320,1751239856799,-460.0,0.00021035,2]
[368618321,1751239856809,-460.0,0.00021035,2]
[368618322,1751239856818,-460.0,0.00021035,2]
[368618323,1751239856827,-1186.974112,0.00021035,2]
[368618324,1751239856837,-460.0,0.00021035,2]
[368618325,1751239856846,-1186.974112,0.00021035,2]
[368618326,1751239856855,-460.0,0.00021036,2]
[368618327,1751239856865,-360.77019711,0.00021036,2]
[368618328,1751239856874,-151.0,0.00021036,2]
[368618329,1751239856884,-875.536668,0.00021036,2]
[368618330,1751239856894,-875.536668,0.00021036,2]
[368618331,1751239856904,-244.254113,0.00021036,2]
[368618332,1751239856913,-244.254113,0.00021036,2]
[368618333,1751239856923,-460.0,0.00021036,2]
[368618334,1751239856932,-1241.6,0.00021036,2]
[368618335,1751239856942,-1149.129529,0.00021036,2]
[368618336,1751239856951,-1149.129529,0.00021036,2]
[368618337,1751239856961,-460.0,0.00021036,2]
[368618338,1751239856970,-460.0,0.00021036,2]
[368618339,1751239856980,-469.32,0.00021036,2]
[368618340,1751239856990,-529.318051,0.00021036,2]
[368618341,1751239856999,-529.318051,0.00021036,2]
[368618342,1751239857009,-696.63,0.00021036,2]
[368618343,1751239857018,-460.0,0.00021036,2]
[368618344,1751239857028,-750.546975,0.00021036,2]
[368618345,1751239857037,-750.546975,0.00021036,2]
[368618346,1751239857047,-151.0,0.00021036,2]
[368618347,1751239857056,-460.0,0.00021036,2]
[368618348,1751239857065,-460.0,0.00021036,2]
[368618349,1751239857074,-682.57,0.00021036,2]
[368618350,1751239857084,-460.0,0.00021036,2]
[368618351,1751239857094,-832.29,0.00021036,2]
[368618352,1751239857103,-4830.61,0.00021036,2]
[368618353,1751239857112,-151.0,0.00021039,2]
[368618354,1751239857122,-151.0,0.00021039,2]
[368618355,1751239857131,-151.0,0.00021039,2]
[368618356,1751239857141,-184.479426,0.00021039,2]
[368618357,1751239857150,-151.0,0.00021039,2]
[368618358,1751239857160,-460.0,0.00021039,2]
[368618359,1751239857170,-196.357077,0.00021039,2]
[368618360,1751239857179,-196.357077,0.00021039,2]
[368618361,1751239857189,-485.35,0.00021039,2]
[368618362,1751239857198,-962.69,0.00021039,2]
[368618363,1751239857207,-851.48,0.00021039,2]
[368618364,1751239857217,-797.34,0.00021039,2]
[368618365,1751239857227,-760.98,0.00021039,2]
[368618366,1751239857236,-460.0,0.00021039,2]
[368618367,1751239857245,-813.49,0.00021039,2]
[368618368,1751239857255,-460.0,0.00021039,2]
[368618369,1751239857265,-460.0,0.00021039,2]
[368618370,1751239857275,-1111.888315,0.00021039,2]
[368618371,1751239857284,-1111.888315,0.00021039,2]
[368618372,1751239857293,-460.0,0.00021039,2]
[368618373,1751239857302,-3000.0,0.0002104,2]
[368618374,1751239857312,-151.0,0.0002104,2]
[368618375,1751239857322,-151.0,0.0002104,2]
[368618376,1751239857331,-12500.0,0.00021041,2]
[368618377,1751239857341,-732.471124,0.00021041,2]
[368618378,1751239857350,-12500.0,0.00021049,2]
[368618379,1751239857359,-3000.0,0.0002105,2]
[368618380,1751239857369,-4985.95,0.00021053,2]
[368618381,1751239857378,-1630.49,0.00021053,2]
[368618382,1751239857388,-250.0,0.00021054,2]
[368618383,1751239857398,-150.0,0.00021054,2]
[368618384,1751239857408,-590.58,0.00021055,2]